lending/lending_fUSD_20260119
["ID","MTS","AMOUNT","RATE_DAILY","PERIOD"]
[402709370,1768815041855,-500.0,0.00017099,2]
[402709371,1768815041864,-500.0,0.00017099,2]
[402709372,1768815041874,-156.44317612,0.000179,2]
[402709373,1768815041884,-4480.47032022,0.000179,2]
[402709374,1768815041893,-3569.0,0.00017911,2]
[402709375,1768815041902,-235.9,0.00017914,2]
[402709376,1768815041912,-500.0,0.00017918,2]
[402709377,1768815041921,-250.0,0.00017918,2]
[402709378,1768815041930,-518.96,0.00017935,2]
[402709379,1768815041940,-235.9,0.0001796,2]
[402709380,1768815041949,-400.0,0.0001797,2]
[402709381,1768815041959,-400.0,0.0001797,2]
[402709382,1768815041968,-242.41470896,0.00017973,2]
[402709383,1768815041979,-500.0,0.00017973,2]
[402709384,1768815041988,-500.0,0.00017973,2]
[402709385,1768815041998,-150.0,0.00017973,2]
[402709386,1768815042008,-150.0,0.00017973,2]
[402709387,1768815042018,-3569.0,0.00017995,2]
[402709388,1768815042027,-250.28196907,0.00017999,2]
[402709389,1768815042036,-5911.5447302,0.00017999,2]
[402709390,1768815042046,-681.71674763,0.00017999,2]
[402709391,1768815042055,-300.0,0.00017999,2]
[402709392,1768815042065,-425.432713,0.00017999,2]
[402709393,1768815042074,-1000.1267484,0.00017999,2]
[402709394,1768815042083,-300.0,0.00017999,2]
[402709395,1768815042093,-666.0,0.00017999,2]
[402709396,1768815042104,-500.0,0.00017999,2]
[402709397,1768815042114,-406.70264043,0.00017999,2]
[402709398,1768815042124,-500.0,0.00017999,2]
[402709399,1768815042135,-293.46628793,0.00017999,2]
[402709400,1768815042144,-394.54684753,0.00017999,2]
[402709401,1768815042153,-2918.0,0.00018,2]
[402709402,1768815042164,-150.0,0.00018,2]
[402709403,1768815042174,-150.0,0.00018,2]
[402709404,1768815042183,-150.0,0.00018,2]
[402709405,1768815042193,-61107.8108827,0.00018,2]
[402709406,1768815042212,-8345.28936877,0.00018,2]
[402709407,1768815042262,-500.0,0.00017099,2]
[402709408,1768815042272,-684.18960059,0.00018,2]
[402709409,1768815042284,-4119.45280101,0.00018,2]
[402709410,1768815042295,-1135.96567531,0.00018,2]
[402709411,1768815042714,-500.0,0.00017099,2]
[402709412,1768815042723,-748.38189103,0.000179,2]
[402709413,1768815042736,-43701.61810897,0.00018,2]
[402709414,1768815042822,-1931.51131072,0.00018,2]
[402709415,1768815042879,-37680.09579957,0.00018,2]
[402709416,1768815042890,-773.17359864,0.00018,2]
[402709417,1768815042934,-305.43973936,0.00018,2]
[402709418,1768815042987,-1832.67330149,0.00018,2]
[402709419,1768815042998,-384.996,0.00018,2]
[402709420,1768815043010,-453.0,0.00018,2]
[402709423,1768815045563,-1264.0,0.0001615,2]
[402709426,1768815045574,-1264.0,0.0001615,2]
[402709428,1768815045586,-151.0,0.00016637,2]
[402709430,1768815045596,-500.0,0.00017099,2]
[402709432,1768815045605,-6056.75,0.00018,2]
[402709434,1768815045618,-861.19274875,0.00018,2]
[402709435,1768815045633,-24170.41313145,0.00018,2]
[402709436,1768815045649,-423.74647872,0.00018,2]
[402709437,1768815045676,-4345.56857318,0.00018,2]
[402709438,1768815045687,-3482.39023281,0.00018,2]
[402709439,1768815045698,-2399.79631544,0.00018,2]
[402709440,1768815045730,-4406.05912286,0.00018,2]
[402709441,1768815045742,-1219.5,0.00018,2]
[402709442,1768815045756,-533.9999989,0.00018,2]
[402709443,1768815045794,-482.99504762,0.00018,2]
[402709450,1768815048611,2597.0,0.000273,120]
[402709451,1768815203044,3252.0,0.00027397,120]
[402709452,1768815430700,10000.01,0.00013844,2]
[402709453,1768815430723,1670.83,0.00013844,2]
[402709454,1768815570150,1219.8409,0.000155,2]
[402709456,1768815662416,170.30037993,0.00015498,2]
[402709468,1768816112660,6939.03872007,0.00015499,2]
[402709469,1768816112686,10000.01,0.00015499,2]
[402709470,1768816112713,10000.01,0.00015499,2]
[402709471,1768816112738,10000.01,0.00015499,2]
[402709472,1768816112763,10000.01,0.00015499,2]
[402709473,1768816112790,10000.01,0.00015499,2]
[402709474,1768816112816,6514.15447993,0.00015499,2]
[402709480,1768816206429,-636.78071427,0.00015589,2]
[402709481,1768816210022,-229.89801628,0.00015589,2]
[402709490,1768816231742,-333.32126945,0.00015589,2]
[402709492,1768816231753,-78.6894126,0.0001559,2]
[402709493,1768816231767,-221.3105874,0.0001559,2]
[402709494,1768816231777,-354.311267,0.0001559,2]
[402709495,1768816231790,-158.688733,0.0001559,2]
[402709496,1768816231801,-229.78,0.0001559,3]
[402709497,1768816231812,-58.53020071,0.0001559,2]
[402709498,1768816231869,-241.46979929,0.0001559,2]
[402709499,1768816231880,-200.0,0.00015591,2]
[402709500,1768816231891,-159.73187614,0.00015591,2]
[402709501,1768816231903,-151.0,0.00015591,2]
[402709502,1768816231914,-151.0,0.00015591,2]
[402709503,1768816231925,-200.0,0.00015591,2]
[402709504,1768816231936,-151.0,0.00015591,2]
[402709505,1768816231946,-151.0,0.00015591,2]
[402709506,1768816231957,-151.0,0.00015591,2]
[402709507,1768816231968,-151.0,0.00015591,2]
[402709508,1768816231979,-151.0,0.00015591,2]
[402709509,1768816231990,-151.0,0.00015591,2]
[402709510,1768816232000,-151.0,0.00015591,2]
[402709512,1768816232012,-151.0,0.00015591,2]
[402709513,1768816232022,-500.0,0.00015591,2]
[402709515,1768816232550,-151.0,0.00015591,2]
[402709516,1768816232571,-243.40767629,0.00015591,2]
[402709517,1768816232598,-500.0,0.00015591,2]
[402709518,1768816232608,-500.0,0.00015591,2]
[402709519,1768816232618,-500.0,0.00015591,2]
[402709520,1768816232628,-500.0,0.00015591,2]
[402709521,1768816232638,-500.0,0.00015591,2]
[402709522,1768816232648,-500.0,0.00015591,2]
[402709523,1768816232662,-500.0,0.00015591,2]
[402709524,1768816232671,-500.0,0.00015591,2]
[402709525,1768816232681,-500.0,0.00015591,2]
[402709526,1768816232690,-500.0,0.00015591,2]
[402709527,1768816232700,-500.0,0.00015591,2]
[402709528,1768816232710,-500.0,0.00015591,2]
[402709529,1768816232719,-500.0,0.00015591,2]
[402709530,1768816232729,-500.0,0.00015591,2]
[402709531,1768816232740,-500.0,0.00015591,2]
[402709532,1768816232749,-500.0,0.00015591,2]
[402709533,1768816232759,-500.0,0.00015591,2]
[402709534,1768816232769,-500.0,0.00015591,2]
[402709535,1768816232780,-500.0,0.00015591,2]
[402709536,1768816232790,-500.0,0.00015591,2]
[402709537,1768816232800,-500.0,0.00015591,2]
[402709538,1768816232810,-500.0,0.00015591,2]
[402709539,1768816232822,-200.0,0.00015591,2]
[402709540,1768816232833,-599.97,0.00015591,2]
[402709541,1768816232844,-251.65900063,0.00015668,2]
[402709542,1768816232855,-1276.46616425,0.00015768,2]
[402709543,1768816232865,-599.97,0.00015865,2]
[402709544,1768816232874,-251.65900056,0.00015916,2]
[402709545,1768816232883,-581.57790083,0.00015973,2]
[402709546,1768816232893,-500.0,0.00015973,2]
[402709547,1768816232902,-500.0,0.00015973,2]
[402709548,1768816232912,-500.0,0.00015973,2]
[402709549,1768816232922,-500.0,0.00015973,2]
[402709550,1768816232932,-500.0,0.00016139,2]
[402709551,1768816232942,-599.97,0.00016139,2]
[402709552,1768816232951,-251.65900056,0.00016164,2]
[402709553,1768816232961,-150.0,0.000162,2]
[402709554,1768816232971,-151.0,0.00016243,2]
[402709555,1768816232983,-151.0,0.00016243,2]
[402709556,1768816232992,-151.0,0.00016247,2]
[402709557,1768816233002,-151.0,0.00016247,2]
[402709558,1768816233011,-151.0,0.00016256,2]
[402709559,1768816233020,-151.0,0.00016256,2]
[402709560,1768816233029,-151.0,0.00016256,2]
[402709561,1768816233043,-151.0,0.00016256,2]
[402709562,1768816233052,-151.0,0.00016256,2]
[402709563,1768816233061,-151.0,0.00016256,2]
[402709564,1768816233071,-151.0,0.00016256,2]
[402709565,1768816233083,-151.0,0.00016256,2]
[402709566,1768816233093,-500.0,0.00016297,2]
[402709567,1768816233102,-161.12,0.00016303,2]
[402709568,1768816233112,-200.0,0.00016357,2]
[402709569,1768816233123,-1000.0,0.00016374,2]
[402709570,1768816233132,-251.65900056,0.00016412,2]
[402709571,1768816233142,-599.97,0.00016413,2]
[402709572,1768816233152,-989.22403192,0.00016521,2]
[402709573,1768816233161,-1000.0,0.00016521,2]
[402709574,1768816233171,-508.88161268,0.00016521,2]
[402709575,1768816233180,-251.65900056,0.0001666,2]
[402709576,1768816233189,-599.97,0.00016687,2]
[402709577,1768816233199,-300.0,0.00016712,2]
[402709578,1768816233208,-1112.7383542,0.00016882,2]
[402709579,1768816233218,-1350.23,0.00016883,2]
[402709580,1768816233227,-251.65900056,0.00016908,2]
[402709581,1768816233236,-575.62,0.00016944,2]
[402709582,1768816233246,-600.01,0.00016961,2]
[402709583,1768816233255,-1000.0,0.00016988,2]
[402709584,1768816233265,-250.0,0.00017,2]
[402709585,1768816233275,-420.0,0.00017052,2]
[402709586,1768816233284,-213.98699089,0.00017068,2]
[402709587,1768816233294,-1999.0,0.00017099,2]
[402709588,1768816233303,-574.12855637,0.00017099,2]
[402709589,1768816233313,-15920.52629956,0.00017111,2]
[402709590,1768816233322,-4475.1074,0.00017123,2]
[402709591,1768816233332,-1680.0,0.00017137,2]
[402709592,1768816233342,-195.0,0.00017148,2]
[402709593,1768816233351,-300.0,0.00017148,2]
[402709594,1768816233361,-250.0,0.00017148,2]
[402709595,1768816233370,-251.65900056,0.00017156,2]
[402709596,1768816233379,-467.58,0.00017178,2]
[402709597,1768816233389,-1000.0,0.0001726,2]
[402709598,1768816233398,-200.0,0.00017336,2]
[402709599,1768816233408,-251.65900056,0.00017404,2]
[402709600,1768816233418,-155.93391326,0.00017429,2]
[402709601,1768816233427,-2000.0,0.00017524,2]
[402709602,1768816233436,-2000.0,0.00017524,2]
[402709603,1768816233445,-2000.0,0.00017524,2]
[402709604,1768816233454,-1190.991,0.00017524,2]
[402709605,1768816233464,-1000.0,0.00017524,2]
[402709606,1768816233473,-288.0,0.00017531,2]
[402709607,1768816233482,-1000.0,0.00017534,2]
[402709608,1768816233492,-1000.0,0.00017602,2]
[402709609,1768816233501,-500.0,0.00017616,2]
[402709610,1768816233510,-288.0,0.00017631,2]
[402709611,1768816233520,-245.74464587,0.0001764,2]
[402709612,1768816233530,-595.37131296,0.00017647,2]
[402709613,1768816233540,-251.65900056,0.00017652,2]
[402709614,1768816233549,-500.0,0.00017699,2]
[402709615,1768816233558,-150.0,0.00017699,2]
[402709616,1768816233567,-288.0,0.00017753,2]
[402709617,1768816233577,-500.0,0.00017754,2]
[402709618,1768816233586,-288.0,0.0001778,2]
[402709619,1768816233596,-201.95,0.000178,2]
[402709620,1768816233606,-288.0,0.00017807,2]
[402709621,1768816233616,-1000.0,0.00017808,2]
[402709622,1768816233625,-500.0,0.00017809,2]
[402709623,1768816233635,-288.0,0.00017813,2]
[402709624,1768816233644,-1683.835,0.00017817,2]
[402709625,1768816233654,-157.365,0.00017817,2]
[402709626,1768816233664,-500.0,0.00017863,2]
[402709627,1768816233673,-1000.0,0.00017866,2]
[402709628,1768816233683,-251.65900056,0.000179,2]
[402709629,1768816233692,-2528.35377843,0.000179,2]
[402709630,1768816233701,-198.90312918,0.000179,3]
[402709631,1768816233712,-238.87235334,0.00017951,2]
[402709632,1768816233721,-300.0,0.00017972,2]
[402709633,1768816233731,-500.0,0.00017973,2]
[402709634,1768816233740,-10741.6671412,0.00017973,2]
[402709635,1768816233750,-1344.4540549,0.00017973,2]
[402709636,1768816233760,-250.0,0.00017973,2]
[402709637,1768816233769,-25.78118367,0.00017977,2]
[402709638,1768816233781,-262.21881633,0.00017977,2]
[402709639,1768816233792,-500.0,0.00017982,2]
[402709640,1768816233801,-1513.0,0.00017995,2]
[402709641,1768816233811,-300.0,0.00017999,2]
[402709642,1768816233821,-155.0,0.00017999,2]
[402709643,1768816233832,-2337.0,0.00018,2]
[402709644,1768816233842,-2257.0347291,0.00018,2]
[402709645,1768816233854,-612.35383556,0.00018,2]
[402709646,1768816233917,-462.11065713,0.00018,2]
[402709647,1768816233929,-404.53844161,0.00018,2]
[402709649,1768816237827,-389.91285221,0.00017587,2]
[402709650,1768816237836,-500.0,0.00017587,2]
[402709651,1768816237845,-297.08997163,0.00017587,2]
[402709652,1768816237887,-202.91002837,0.00017587,2]
[402709653,1768816237896,-499.32511217,0.00017587,2]
[402709654,1768816237907,-415.84029388,0.00017587,2]
[402709655,1768816237916,-500.0,0.00017587,2]
[402709656,1768816237927,-500.0,0.00017587,2]
[402709657,1768816237940,-500.0,0.00017587,2]
[402709658,1768816237950,-500.0,0.00017587,2]
[402709659,1768816237961,-500.0,0.00017587,2]
[402709660,1768816237970,-500.0,0.00017587,2]
[402709661,1768816237979,-437.87358604,0.00017587,2]
[402709662,1768816237990,-500.0,0.00017587,2]
[402709663,1768816238000,-500.0,0.00017587,2]
[402709664,1768816238009,-500.0,0.00017587,2]
[402709665,1768816238019,-500.0,0.00017587,2]
[402709666,1768816238029,-500.0,0.00017587,2]
[402709667,1768816238039,-500.0,0.00017587,2]
[402709668,1768816238048,-500.0,0.00017587,2]
[402709669,1768816238058,-500.0,0.00017587,2]
[402709670,1768816238067,-500.0,0.00017587,2]
[402709671,1768816238079,-500.0,0.00017587,2]
[402709672,1768816238089,-500.0,0.00017587,2]
[402709673,1768816238098,-500.0,0.00017587,2]
[402709674,1768816238108,-500.0,0.00017587,2]
[402709675,1768816238118,-500.0,0.00017587,2]
[402709676,1768816238128,-500.0,0.00017587,2]
[402709677,1768816238138,-500.0,0.00017587,2]
[402709678,1768816238148,-500.0,0.00017587,2]
[402709679,1768816238159,-377.35313743,0.00017587,2]
[402709680,1768816238168,-500.0,0.00017587,2]
[402709681,1768816238178,-500.0,0.00017587,2]
[402709682,1768816238187,-500.0,0.00017587,2]
[402709683,1768816238197,-500.0,0.00017587,2]
[402709685,1768816238206,-500.0,0.00017587,2]
[402709687,1768816238216,-25573.46609732,0.00018,2]
[402709689,1768816238228,-8071.6518713,0.00018,2]
[402709724,1768816239919,-919.23138399,0.00018,2]
[402709725,1768816239932,-266.6244499,0.00018,2]
[402709726,1768816239943,-8204.96437212,0.00018,2]
[402709727,1768816239954,-1780.93726904,0.00018,2]
[402709728,1768816239969,-1109.86639144,0.00018,2]
[402709729,1768816240181,-1144.98581222,0.00018,2]
[402709730,1768816240317,-1398658.97972367,0.00018,2]
[402709731,1768816240329,-913.05,0.00018,7]
[402709732,1768816240339,-394210.39359879,0.00018,2]
[402709733,1768816240351,-796.87788394,0.00018,2]
[402709734,1768816240396,-728.42796485,0.00018,2]
[402709744,1768816243001,-3874.85299278,0.00018,2]
[402709745,1768816243014,-1296.64874653,0.00018,2]
[402709746,1768816243054,-439.16784143,0.00018,2]
[402709747,1768816243066,-722.053332,0.00018,2]
[402709748,1768816243108,-77920.02462443,0.00018,2]
[402709749,1768816243199,-708.40469986,0.00018,2]
[402709750,1768816243212,-1247.15678382,0.00018,2]
[402709751,1768816243224,-1582.81167189,0.00018,2]
[402709752,1768816243236,-1660.56417668,0.00018,2]
[402709758,1768816245810,-12434.572551,0.00018,2]
[402709759,1768816245881,-9702.52524597,0.00018,2]
[402709760,1768816268755,3485.85552007,0.00015499,2]
[402709761,1768816268781,10000.01,0.00015499,2]
[402709762,1768816268809,10000.01,0.00015499,2]
[402709763,1768816268835,10000.01,0.00015499,2]
[402709764,1768816268863,13722.8812901,0.00015499,2]
[402709765,1768816269570,-396.97072141,0.00015499,2]
[402709766,1768816272046,-250.0,0.00015499,2]
[402709767,1768816273539,-167.72760685,0.00015499,2]
[402709768,1768816276405,-246.83932142,0.00015499,2]
[402709769,1768816278386,-593.42132432,0.00015499,2]
[402709770,1768816279899,-300.0,0.00015499,2]
[402709771,1768816282541,-410.802881,0.00015499,2]
[402709772,1768816286322,-215.21420109,0.00015499,2]
[402709773,1768816289023,-306.78874054,0.00015499,2]
[402709774,1768816290559,-192.5043832,0.00015499,2]
[402709775,1768816294041,-201.90146929,0.00015499,2]
[402709776,1768816294850,2597.334,0.00015189,2]
[402709777,1768816294902,158.864,0.00015189,2]
[402709778,1768816297551,-215.74450503,0.00015499,2]
[402709779,1768816300156,-179.75030881,0.00015499,2]
[402709780,1768816301708,-263.02138044,0.00015499,2]
[402709781,1768816304261,-229.4334961,0.00015499,2]
[402709782,1768816306478,-161.80446071,0.00015499,2]
[402709783,1768816308728,-191.1803794,0.00015499,2]
[402709784,1768816310973,-275.80053399,0.00015499,2]
[402709785,1768816312468,-296.62896685,0.00015499,2]
[402709786,1768816316220,-253.16067858,0.00015499,2]
[402709787,1768816318466,-266.43552422,0.00015499,2]
[402709789,1768816320943,-241.50505396,0.00015499,2]
[402709790,1768816321275,300.0,0.00015498,2]
[402709791,1768816324869,-209.08362378,0.00015499,2]
[402709792,1768816326381,1880.760405,0.00015421,2]
[402709793,1768816326907,-427.90758935,0.00015499,2]
[402709794,1768816329467,-218.24227358,0.00015499,2]
[402709795,1768816332112,-231.55872604,0.00015499,2]
[402709796,1768816333645,-268.44127396,0.00015499,2]
[402709797,1768816335932,-299.47953157,0.00015499,2]
[402709798,1768816337986,-408.06722936,0.00015499,2]
[402709799,1768816340013,-237.5498585,0.00015499,2]
[402709800,1768816345020,-250.00000017,0.00015499,2]
[402709801,1768816348719,-279.78711307,0.00015499,2]
[402709802,1768816351110,-182.90599203,0.00015499,2]
[402709803,1768816354542,-431.28818409,0.00015499,2]
[402709804,1768816362324,-228.27248753,0.00015499,2]
[402709805,1768816364924,-201.28433964,0.00015499,2]
[402709806,1768816367134,-294.95573085,0.00015499,2]
[402709807,1768816369267,-311.61718498,0.00015499,2]
[402709808,1768816374712,-501.5645539,0.00015499,2]
[402709809,1768816376966,-195.53814828,0.00015499,2]
[402709810,1768816380439,-178.67630316,0.00015499,2]
[402709811,1768816383590,-244.28029059,0.00015499,2]
[402709812,1768816387367,-199.46921829,0.00015499,2]
[402709813,1768816388886,-248.85453284,0.00015499,2]
[402709814,1768816392741,-389.66526946,0.00015499,2]
[402709815,1768816395728,-450.22627817,0.00015499,2]
[402709816,1768816398682,1173.0,0.00015498,2]
[402709819,1768816399937,151.0,0.00015496,2]
[402709820,1768816400574,-206.69690622,0.00015499,2]
[402709821,1768816402491,-195.09938397,0.00015499,2]
[402709822,1768816404183,-344.33935801,0.00015499,2]
[402709823,1768816407476,-264.68883042,0.00015499,2]
[402709824,1768816408939,-342.04740783,0.00015499,2]
[402709825,1768816412272,-200.0,0.00015499,2]
[402709826,1768816414343,-239.94323217,0.00015499,2]
[402709827,1768816419242,-318.22475805,0.00015499,2]
[402709828,1768816422568,-176.0904459,0.00015499,2]
[402709829,1768816424163,-210.05676783,0.00015499,2]
[402709830,1768816428096,-154.62452806,0.00015499,2]
[402709831,1768816430878,-203.45020466,0.00015499,2]
[402709832,1768816432983,-228.46088989,0.00015499,2]
[402709833,1768816434510,-473.31304378,0.00015499,2]
[402709834,1768816437090,-151.21241997,0.00015499,2]
[402709835,1768816439281,-296.54979534,0.00015499,2]
[402709836,1768816441326,300.0,0.00015498,2]
[402709837,1768816441785,300.0,0.00015498,2]
[402709838,1768816441951,-230.15741242,0.00015499,2]
[402709839,1768816444263,-222.07799881,0.00015499,2]
[402709840,1768816447903,-209.78581975,0.00015499,2]
[402709841,1768816449620,-215.14510851,0.00015499,2]
[402709842,1768816452779,-227.87507243,0.00015499,2]
[402709843,1768816454353,-213.91614905,0.00015499,2]
[402709844,1768816455870,-291.89831498,0.00015499,2]
[402709845,1768816460739,-159.97553597,0.00015499,2]
[402709846,1768816462791,-187.64021807,0.00015499,2]
[402709848,1768816465968,-235.83213308,0.00015499,2]
[402709849,1768816469309,-176.30234567,0.00015499,2]
[402709850,1768816470958,-250.0,0.00015499,2]
[402709853,1768816473419,-294.15545545,0.00015499,2]
[402709854,1768816474964,-191.02534252,0.00015499,2]
[402709855,1768816478126,-314.98545511,0.00015499,2]
[402709856,1768816481280,-209.97166445,0.00015499,2]
[402709857,1768816482746,-250.0,0.00015499,2]
[402709858,1768816485239,-195.0,0.00015499,2]
[402709860,1768816487735,-164.9802563,0.00015499,2]
[402709861,1768816489104,-276.0,0.00015499,2]
[402709862,1768816490598,-359.14456207,0.00015499,2]
[402709863,1768816492177,-304.88377365,0.00015499,2]
[402709864,1768816494164,-280.0,0.00015499,2]
[402709865,1768816497267,-176.2629968,0.00015499,2]
[402709866,1768816498673,-166.66,0.00015499,2]
[402709867,1768816501289,1200.0,0.00015498,2]
[402709868,1768816501451,276.0,0.00015498,2]
[402709869,1768816503465,-296.86287855,0.00015499,2]
[402709870,1768816507459,-870.94872747,0.00015499,2]
[402709871,1768816510954,-200.0,0.00015499,2]
[402709872,1768816513037,-159.10899073,0.00015499,2]
[402709873,1768816518043,-189.91285204,0.00015499,2]
[402709874,1768816520158,500.0,0.00015498,2]
[402709875,1768816520189,161.95604531,0.00015498,2]
[402709876,1768816520233,500.0,0.00015498,2]
[402709877,1768816520279,500.0,0.00015498,2]
[402709878,1768816520324,1.09554969,0.00015498,2]
[402709879,1768816520352,498.90445031,0.00015498,2]
[402709880,1768816520398,500.0,0.00015498,2]
[402709881,1768816520443,500.0,0.00015498,2]
[402709882,1768816520489,500.0,0.00015498,2]
[402709883,1768816520527,500.0,0.00015498,2]
[402709884,1768816520834,500.0,0.00015498,2]
[402709885,1768816520890,500.0,0.00015498,2]
[402709886,1768816520932,-182.90871519,0.00015499,2]
[402709887,1768816520969,500.0,0.00015498,2]
[402709888,1768816521009,500.0,0.00015498,2]
[402709889,1768816521046,500.0,0.00015498,2]
[402709890,1768816521095,500.0,0.00015498,2]
[402709891,1768816521154,500.0,0.00015498,2]
[402709892,1768816521192,500.0,0.00015498,2]
[402709893,1768816521229,500.0,0.00015498,2]
[402709894,1768816521271,500.0,0.00015498,2]
[402709895,1768816521312,500.0,0.00015498,2]
[402709896,1768816521353,500.0,0.00015498,2]
[402709897,1768816521393,500.0,0.00015498,2]
[402709898,1768816521435,500.0,0.00015498,2]
[402709899,1768816521471,500.0,0.00015498,2]
[402709900,1768816521510,1.10554969,0.00015498,2]
[402709901,1768816521539,498.89445031,0.00015498,2]
[402709902,1768816521574,500.0,0.00015498,2]
[402709903,1768816521609,500.0,0.00015498,2]
[402709904,1768816521641,500.0,0.00015498,2]
[402709905,1768816521683,500.0,0.00015498,2]
[402709906,1768816521723,500.0,0.00015498,2]
[402709907,1768816521757,500.0,0.00015498,2]
[402709908,1768816521794,500.0,0.00015498,2]
[402709909,1768816521827,500.0,0.00015498,2]
[402709910,1768816521876,500.0,0.00015498,2]
[402709911,1768816521910,500.0,0.00015498,2]
[402709912,1768816521964,500.0,0.00015498,2]
[402709913,1768816521998,500.0,0.00015498,2]
[402709914,1768816522035,500.0,0.00015498,2]
[402709915,1768816522074,221.25634354,0.00015498,2]
[402709916,1768816522118,500.0,0.00015498,2]
[402709917,1768816522158,500.0,0.00015498,2]
[402709918,1768816522205,500.0,0.00015498,2]
[402709919,1768816522241,500.0,0.00015498,2]
[402709920,1768816522376,-360.27484085,0.00015499,2]
[402709921,1768816525367,-612.72676971,0.00015499,2]
[402709922,1768816526833,-255.88840929,0.00015499,2]
[402709923,1768816529150,-182.31053033,0.00015499,2]
[402709924,1768816529287,500.0,0.00015489,2]
[402709925,1768816531339,-417.84520574,0.00015499,2]
[402709926,1768816533318,-283.29410064,0.00015499,2]
[402709928,1768816536053,279.85920615,0.00015498,2]
[402709929,1768816536080,220.14079385,0.00015498,2]
[402709930,1768816536121,500.0,0.00015498,2]
[402709931,1768816536211,500.0,0.00015498,2]
[402709932,1768816536247,500.0,0.00015498,2]
[402709933,1768816536284,500.0,0.00015498,2]
[402709934,1768816536339,500.0,0.00015498,2]
[402709935,1768816536399,500.0,0.00015498,2]
[402709936,1768816536435,500.0,0.00015498,2]
[402709937,1768816536473,500.0,0.00015498,2]
[402709938,1768816536515,500.0,0.00015498,2]
[402709939,1768816536563,500.0,0.00015498,2]
[402709940,1768816537428,221.25634354,0.00015498,2]
[402709941,1768816537574,-172.86191901,0.00015499,2]
[402709942,1768816538979,-208.38867204,0.00015499,2]
[402709943,1768816541604,-396.75203161,0.00015499,2]
[402709944,1768816543131,-245.75619135,0.00015499,2]
[402709945,1768816545158,-269.69758806,0.00015499,2]
[402709946,1768816547616,-237.64234053,0.00015499,2]
[402709948,1768816549480,-747.20991365,0.00015499,2]
[402709949,1768816552089,-421.86843115,0.00015499,2]
[402709950,1768816555345,-282.56168724,0.00015499,2]
[402709952,1768816557116,-151.99077629,0.00015499,2]
[402709953,1768816558509,-228.39198199,0.00015499,2]
[402709954,1768816560127,-496.44153654,0.00015499,2]
[402709955,1768816561414,300.0,0.00015498,2]
[402709956,1768816563113,-158.50428481,0.00015499,2]
[402709957,1768816564926,-302.4460822,0.00015499,2]
[402709960,1768816566885,-252.85258151,0.00015499,2]
[402709961,1768816568357,-245.70075882,0.00015499,2]
[402709962,1768816570882,-161.30683598,0.00015499,2]
[402709963,1768816573288,-215.00156885,0.00015499,2]
[402709964,1768816576810,-279.67050301,0.00015499,2]
[402709965,1768816585618,-397.45872186,0.00015499,2]
[402709966,1768816586797,-641.57898174,0.00015499,2]
[402709967,1768816588287,-329.42150519,0.00015499,2]
[402709968,1768816592573,-199.22287407,0.00015499,2]
[402709969,1768816595154,-265.70291514,0.00015499,2]
[402709970,1768816598163,-250.0,0.00015499,2]
[402709971,1768816599648,-195.1085223,0.00015499,2]
[402709972,1768816601920,-246.80571456,0.00015499,2]
[402709973,1768816603885,-303.78542022,0.00015499,2]
[402709974,1768816606375,-266.64613231,0.00015499,2]
[402709975,1768816607940,-300.0,0.00015499,2]